bitfinex-derivatives/quotes_SOLF0:USTF0_20241216
["timestamp","ask_amount","ask_price","bid_price","bid_amount"]
[1734370504439,261.67124226,220.0,219.97,2.2727]
[1734370504633,263.94374226,220.0,219.96,2.2728]
[1734370505040,261.67124226,220.0,219.93,8.3857446]
[1734370505328,261.67124226,220.0,219.92,2.4]
[1734370505329,253.28549766,220.0,219.95,8.3857446]
[1734370506135,263.94364226,220.0,219.96,2.2728]
[1734370506738,263.94364226,220.0,219.92,2.4]
[1734370506739,8.3857446,219.98,219.92,2.4]
[1734370507036,261.67124226,219.98,219.92,2.4]
[1734370507233,263.94384226,219.98,219.94,2.273]
[1734370507434,255.55809766,219.98,219.94,2.273]
[1734370507733,253.28549766,219.98,219.97,10.6584446]
[1734370507930,253.28549766,220.04,219.97,8.3857446]
[1734370508135,253.28549766,220.04,219.99,8.3857446]
[1734370509229,8.3857446,220.05,219.99,8.3857446]
[1734370509433,8.3857446,220.05,220.02,2.2722]
[1734370509632,253.28549766,220.06,219.99,8.3857446]
[1734370510435,9.9222446,220.07,219.99,8.3857446]
[1734370511038,9.9222446,220.07,220.01,8.3857446]
[1734370511432,255.68549766,220.1,220.03,8.3857446]
[1734370511633,8.3857446,220.09,220.03,8.3857446]
[1734370512338,8.3857446,220.09,220.06,2.2717]
[1734370516244,259.54689766,220.13,220.09,2.2714]
[1734370516444,18.68466843,220.12,220.09,2.2714]
[1734370516649,18.68466843,220.12,220.05,8.3857446]
[1734370516851,10.6569446,220.12,220.08,2.2716]
[1734370517049,8.3857446,220.12,220.05,8.3857446]
[1734370518551,10.6569446,220.12,220.08,2.2716]
[1734370518948,8.3857446,220.12,220.03,5.39319126]
[1734370519247,8.3857446,220.08,220.03,5.39319126]
[1734370519450,8.3857446,220.06,220.03,5.39319126]
[1734370519849,2.4,220.1,220.03,5.39319126]
[1734370520049,8.3857446,220.09,220.03,5.39319126]
[1734370521547,10.6572446,220.09,220.05,2.2719]
[1734370521755,2.4,220.1,220.04,8.3857446]
[1734370521947,9.9760446,220.13,220.06,8.3857446]
[1734370522246,8.3857446,220.13,220.06,8.3857446]
[1734370522554,2.2713,220.12,220.07,2.2716]
[1734370522854,2.2713,220.12,220.06,8.3857446]
[1734370523150,2.2713,220.12,220.08,2.2716]
[1734370523151,12.48301166,220.12,220.08,2.2716]
[1734370523346,8.3857446,220.11,220.08,2.2716]
[1734370525353,8.3857446,220.11,220.03,5.39319126]
[1734370525547,10.6572446,220.09,220.05,2.2719]
[1734370527452,2.2716,220.08,220.05,2.2719]
[1734370528050,2.2716,220.08,220.03,5.39319126]
[1734370528051,8.3857446,220.09,220.03,5.39319126]
[1734370528257,10.6575446,220.07,220.03,7.66529126]
[1734370528454,8.3857446,220.07,220.03,7.66529126]
[1734370529555,10.6574446,220.07,220.03,7.66529126]
[1734370529858,10.6574446,220.07,220.03,5.39319126]
[1734370530051,10.6574446,220.07,219.99,2.4]
[1734370530256,8.3857446,220.07,220.0,8.3857446]
[1734370530657,10.6574446,220.07,220.0,8.3857446]
[1734370531158,253.28549766,220.11,220.02,8.3857446]
[1734370531454,8.3857446,220.1,220.04,8.3857446]
[1734370531652,8.3857446,220.06,220.01,5.44636057]
[1734370531955,10.6576446,220.06,220.01,5.44636057]
[1734370532748,10.6576446,220.06,220.03,2.272]
[1734370532949,8.3857446,220.06,220.01,13.83210517]
[1734370533152,8.3857446,220.06,220.02,2.2722]
[1734370533954,8.3857446,220.06,219.99,8.3857446]
[1734370534252,2.2721,220.03,220.0,2.2724]
[1734370534452,8.3857446,220.04,219.97,8.3857446]
[1734370534652,8.3857446,220.02,219.98,5.45047857]
[1734370534858,8.3857446,220.0,219.95,8.3857446]
[1734370535153,8.3857446,220.0,219.93,12.2729446]
[1734370535856,10.31854583,220.04,219.86,1.5523]
[1734370535857,8.3857446,219.98,219.86,1.5523]
[1734370536052,8.3857446,219.98,219.91,8.3857446]
[1734370536857,8.3857446,219.98,219.94,2.273]
[1734370536858,10.6583446,219.98,219.94,2.273]
[1734370537358,8.3857446,219.98,219.93,13.76379089]
[1734370537553,8.3857446,219.98,219.93,5.37804629]
[1734370537958,10.6584446,219.98,219.94,2.273]
[1734370538758,8.3857446,219.98,219.95,2.2729]
[1734370538961,8.3857446,220.0,219.93,13.76379089]
[1734370539160,8.3857446,220.0,219.98,2.2726]
[1734370539952,2.2721,220.03,219.95,8.3857446]
[1734370540155,8.3857446,220.01,219.95,8.3857446]
[1734370540555,8.3857446,220.01,219.98,2.2726]
[1734370541559,8.3857446,220.01,219.99,2.2725]
[1734370542851,255.55749766,220.04,219.99,8.3857446]
[1734370542852,253.28549766,220.04,219.99,8.3857446]
[1734370543357,253.28549766,220.04,220.03,2.2721]
[1734370543862,10.6576446,220.06,220.01,2.2723]
[1734370544658,10.6576446,220.06,220.02,2.2722]
[1734370545857,8.3857446,220.06,220.03,2.2721]
[1734370546856,10.6576446,220.06,220.03,2.2721]
[1734370547165,8.3857446,220.04,219.9,8.3857446]
[1734370547366,8.3857446,219.97,219.9,8.3857446]
[1734370547662,10.6585446,219.97,219.92,2.2732]
[1734370547855,8.3857446,219.97,219.9,8.3857446]
[1734370548256,2.273,219.95,219.9,8.3857446]
[1734370548657,2.273,219.95,219.91,5.35135456]
[1734370549462,2.273,219.95,219.91,7.62465456]
[1734370550562,10.6585446,219.97,219.92,2.2732]
[1734370550765,2.4,220.01,219.94,8.3857446]
[1734370550959,2.2725,220.0,219.95,2.2729]
[1734370551662,253.28549766,220.02,219.91,5.35135456]
[1734370551663,253.28549766,220.06,220.01,2.2723]
[1734370551869,253.28549766,220.06,219.99,8.3857446]
[1734370551870,261.67124226,220.06,219.99,8.3857446]
[1734370552064,253.28549766,220.06,220.04,2.272]
[1734370552265,253.28549766,220.06,220.03,8.3857446]
[1734370552665,1.5362,220.08,220.03,8.3857446]
[1734370553366,261.67124226,220.09,220.03,8.3857446]
[1734370553865,8.3857446,220.09,220.03,8.3857446]
[1734370554070,1.5907,220.1,220.0,13.09092614]
[1734370554861,2.2715,220.09,220.04,2.2719]
[1734370558271,2.2715,220.09,220.0,13.09092614]
[1734370558477,2.2715,220.09,220.05,2.2718]
[1734370558768,255.55679766,220.11,220.0,13.09092614]
[1734370559473,2.2715,220.09,220.04,2.2719]
[1734370560971,2.2715,220.09,220.05,2.2718]
[1734370561677,253.28549766,220.12,220.05,2.4]
[1734370561976,1.4876,220.13,220.05,2.4]
[1734370562179,2.2712,220.12,220.05,2.4]
[1734370562878,14.57852614,220.13,220.05,2.4]
[1734370563373,2.2714,220.1,220.05,4.6718]
[1734370563674,2.2714,220.1,220.05,2.4]
[1734370564570,2.2714,220.1,220.06,2.2718]
[1734370567477,10.12342397,220.11,220.05,1.85748868]
[1734370567678,253.28549766,220.1,220.05,1.85748868]
[1734370568079,253.28549766,220.1,220.07,2.2717]
[1734370568878,253.28549766,220.11,220.07,2.2717]
[1734370569084,10.12348709,220.1,220.08,2.2715]
[1734370569384,253.28549766,220.11,220.05,13.09092614]
[1734370569581,255.55679766,220.11,220.07,2.2717]
[1734370569778,10.12371486,220.1,220.04,5.44040901]
[1734370570079,38.07255106,220.1,220.04,5.44040901]
[1734370570583,38.07255106,220.1,220.08,2.2715]
[1734370571379,38.07255106,220.1,220.08,0.91272162]
[1734370572179,38.07255106,220.1,220.09,2.2715]
[1734370572882,253.28549766,220.12,220.09,2.2715]
[1734370573078,253.28549766,220.12,220.06,2.2718]
[1734370573680,255.55679766,220.12,220.06,2.2718]
[1734370573875,253.28549766,220.12,220.06,2.2718]
[1734370574075,9.93645829,220.11,220.06,2.2718]
[1734370574280,253.28549766,220.12,220.06,10.64816691]
[1734370574481,9.86396691,220.13,220.06,10.64816691]
[1734370574680,2.2714,220.11,220.06,10.64816691]
[1734370575583,2.2717,220.08,220.04,7.84040901]
[1734370576283,1.4876,220.13,220.04,7.84040901]
[1734370576284,8.37636691,220.11,220.04,18.48877592]
[1734370576987,8.37636691,220.11,220.04,16.08877592]
[1734370577382,2.2716,220.09,220.04,16.08877592]
[1734370578082,1.4876,220.13,219.86,4.5477]
[1734370578083,8.37636691,220.07,219.86,4.5477]
[1734370578383,8.37636691,220.07,220.0,8.37636691]
[1734370578780,2.2719,220.05,220.0,10.64876691]
[1734370580081,2.272,220.04,220.0,10.64876691]
[1734370581482,2.272,220.04,220.0,2.2724]
[1734370581691,8.37636691,220.03,219.98,5.54483385]
[1734370582584,8.37636691,220.03,219.97,2.2727]
[1734370582789,8.37636691,220.03,219.96,8.37636691]
[1734370583391,8.37636691,220.03,219.96,13.90974111]
[1734370583886,2.2724,220.01,219.96,16.18254111]
[1734370584095,8.37636691,220.03,219.96,16.18254111]
[1734370584686,2.2725,219.99,219.95,2.2729]
[1734370584892,8.37636691,220.01,219.92,1.5185]
[1734370584893,8.37636691,220.01,219.94,8.37636691]
[1734370586500,2.2725,219.99,219.94,10.64936691]
[1734370587289,255.55759766,220.04,219.99,2.2725]
[1734370587490,253.28549766,220.04,220.02,8.37636691]
[1734370588097,253.28549766,220.04,220.0,8.37636691]
[1734370588299,2.2719,220.05,220.0,8.37636691]
[1734370588898,2.2718,220.06,220.0,10.64866691]
[1734370589103,2.2718,220.06,220.0,8.37636691]
[1734370589490,255.55729766,220.06,220.0,8.37636691]
[1734370589797,255.55729766,220.06,220.02,8.37636691]
[1734370590492,253.28549766,220.06,220.02,8.37636691]
[1734370590697,263.93356457,220.07,220.02,8.37636691]
[1734370591107,263.93356457,220.07,220.02,10.64856691]
[1734370591401,2.2718,220.06,220.02,8.37636691]
[1734370592402,253.28549766,220.07,220.02,8.37636691]
[1734370592601,255.55719766,220.07,220.02,10.64856691]
[1734370592806,261.66186457,220.07,219.96,3.0873]
[1734370593003,2.2718,220.06,220.01,2.2723]
[1734370593304,2.2718,220.06,220.01,10.64866691]
[1734370593504,263.93356457,220.07,220.02,2.2721]
[1734370593711,255.55719766,220.07,220.02,2.2721]
[1734370594205,255.55709766,220.08,220.03,10.64846691]
[1734370596103,255.55709766,220.08,220.04,2.272]
[1734370596302,253.28549766,220.08,220.04,2.272]
[1734370596506,10.64786691,220.09,220.07,8.37636691]
[1734370596507,253.28549766,220.09,220.07,8.37636691]
[1734370597002,253.28549766,220.09,220.05,8.37636691]
[1734370597298,253.28549766,220.09,219.97,1.5932]
[1734370597499,253.28549766,220.09,220.03,8.37636691]
[1734370597704,255.68549766,220.11,220.0,2.4]
[1734370597903,8.37636691,220.09,220.02,8.37636691]
[1734370598699,2.2718,220.07,220.02,10.64846691]
[1734370598903,2.2718,220.07,220.02,8.37636691]
[1734370599606,8.37636691,220.09,220.01,2.2723]
[1734370599804,2.2719,220.06,220.01,2.2723]
[1734370600504,2.2719,220.05,220.01,2.2723]
[1734370601204,8.37636691,220.05,219.96,3.0873]
[1734370601408,8.37636691,220.05,219.98,8.37636691]
[1734370601903,2.2722,220.03,219.98,10.64886691]
[1734370602101,2.2722,220.03,219.98,8.37636691]
[1734370602504,2.2722,220.03,219.99,2.2725]
[1734370602802,2.2722,220.02,219.98,8.37636691]
[1734370603401,2.2722,220.02,219.98,10.64896691]
[1734370603606,2.2721,220.03,219.98,8.37636691]
[1734370603813,10.40023124,220.04,220.0,8.37636691]
[1734370604007,10.40023124,220.04,220.02,2.2722]
[1734370604207,255.55739766,220.05,220.02,2.2722]
[1734370604503,2.2719,220.05,220.02,2.2722]
[1734370604801,2.2721,220.04,220.0,10.64866691]
[1734370605704,2.2721,220.04,220.0,2.2723]
[1734370606010,8.37636691,220.03,219.97,2.4]
[1734370606804,8.37636691,220.03,219.88,4.7417]
[1734370607002,2.2723,220.01,219.97,10.64906691]
[1734370607206,261.66186457,220.05,219.97,8.37636691]
[1734370607409,261.66186457,220.05,219.99,8.37636691]
[1734370607603,261.66186457,220.05,220.0,2.2724]
[1734370608003,8.37636691,220.05,220.0,2.2724]
[1734370608915,8.37636691,220.05,219.99,8.37636691]
[1734370609109,2.2721,220.03,219.99,10.64896691]
[1734370609311,2.2721,220.03,219.97,8.37636691]
[1734370609312,8.37636691,220.03,219.97,8.37636691]
[1734370610213,2.2724,220.02,219.98,2.2727]
[1734370610412,8.37636691,220.01,219.95,8.37636691]
[1734370610806,2.2728,219.98,219.95,8.37636691]
[1734370611005,8.37636691,220.01,219.93,13.84306909]
[1734370611410,261.66186457,220.01,219.93,13.84306909]
[1734370611716,261.66186457,220.01,219.93,5.46670218]
[1734370611917,261.66186457,220.01,219.94,8.37636691]
[1734370612108,2.2726,219.99,219.94,10.64946691]
[1734370612315,261.66186457,220.01,219.94,10.64946691]
[1734370612514,253.28549766,220.0,219.94,10.64946691]
[1734370612715,2.2726,219.99,219.94,8.37636691]
[1734370612910,2.2726,219.99,219.96,8.37636691]
[1734370613111,253.28549766,220.0,219.96,8.37636691]
[1734370613312,253.28549766,220.0,219.98,8.37636691]
[1734370613617,516.35201167,220.04,219.99,2.2725]
[1734370613819,261.66186457,220.04,219.98,8.37636691]
[1734370615313,2.2723,220.02,219.98,8.37636691]
[1734370615519,2.2723,220.02,219.96,8.37636691]
[1734370616120,255.55779766,220.02,219.96,8.37636691]
[1734370616512,2.2725,219.99,219.93,5.46670218]
[1734370616717,8.37636691,220.0,219.94,8.37636691]
[1734370617224,2.2728,219.97,219.94,8.37636691]
[1734370617915,2.2726,219.98,219.94,10.64936691]
[1734370620319,8.37636691,220.0,219.94,8.37636691]
[1734370620622,2.2727,219.97,219.94,8.37636691]
[1734370621218,2.2727,219.97,219.94,10.64936691]
[1734370621415,2.2726,219.98,219.94,10.64936691]
[1734370621817,2.2726,219.98,219.94,8.37636691]
[1734370622814,2.2726,219.98,219.94,10.64926691]
[1734370623028,2.2726,219.98,219.94,8.37636691]
[1734370623925,2.2724,220.0,219.97,2.2727]
[1734370625924,2.2724,220.0,219.96,10.64916691]
[1734370626119,2.2725,219.99,219.96,10.64916691]
[1734370626319,8.37636691,220.02,219.96,10.64916691]
[1734370626631,2.2724,220.0,219.96,10.64916691]
[1734370627328,10.17340402,220.01,219.93,5.46670218]
[1734370627629,271.83526859,220.0,219.94,8.37636691]
[1734370627827,12.44590402,219.99,219.95,2.2729]
[1734370628828,2.2726,219.98,219.95,2.2729]
[1734370629030,10.17340402,219.99,219.95,2.2729]
[1734370629227,10.17340402,219.99,219.94,10.64936691]
[1734370629833,10.17340402,219.99,219.88,4.7417]
[1734370630029,8.37636691,219.98,219.91,8.37636691]
[1734370630235,18.54977093,219.98,219.91,8.37636691]
[1734370630535,2.2728,219.96,219.91,10.64956691]
[1734370631124,10.64896691,219.98,219.93,8.37636691]
[1734370631328,2.2726,219.98,219.93,8.37636691]
[1734370631527,12.82561658,219.98,219.93,8.37636691]
[1734370631934,10.55301658,219.98,219.94,2.273]
[1734370632135,10.55301658,219.98,219.95,8.37636691]
[1734370632734,10.55301658,219.98,219.95,10.64926691]
[1734370634639,255.55799766,219.99,219.95,10.64926691]
[1734370635136,2.2725,219.99,219.95,10.64926691]
[1734370636539,8.37636691,220.01,219.95,8.37636691]
[1734370636540,2.2724,220.0,219.95,8.37636691]
[1734370636739,293.75891336,220.03,219.97,8.37636691]
[1734370636936,253.28549766,220.03,219.97,8.37636691]
[1734370637640,8.37636691,220.04,219.97,8.37636691]
[1734370637839,18.92410837,220.04,219.97,8.37636691]
[1734370638232,21.19610837,220.04,219.99,2.2724]
[1734370638430,253.28549766,220.05,219.99,8.37636691]
[1734370638638,255.55739766,220.05,220.01,2.2723]
[1734370638838,255.55739766,220.05,219.99,8.37636691]
[1734370638839,8.37636691,220.04,219.99,8.37636691]
[1734370639039,8.37636691,220.04,219.97,8.37636691]
[1734370639241,2.2724,220.01,219.96,8.37636691]
[1734370639841,8.37636691,220.02,219.96,8.37636691]
[1734370641143,10.64856691,220.02,219.97,2.2727]
[1734370641440,253.28549766,220.05,220.0,8.37636691]
[1734370641635,253.28549766,220.05,220.02,10.64846691]
[1734370641835,253.28549766,220.05,220.0,2.02677924]
[1734370642243,253.28549766,220.02,220.0,2.02677924]
[1734370642640,10.48081614,220.01,219.9,5.34300105]
[1734370642841,253.28549766,220.02,219.97,2.2726]
[1734370643041,253.28549766,220.02,219.98,8.37636691]
[1734370643240,10.47996755,220.01,219.98,8.37636691]
[1734370643443,255.55769766,220.03,219.98,8.37636691]
[1734370643642,10.48209021,220.02,219.98,8.37636691]
[1734370643945,10.48209021,220.02,219.98,10.64896691]
[1734370644146,12.75429021,220.02,219.98,8.37636691]
[1734370644535,12.75429021,220.02,219.94,2.4]
[1734370644536,8.37636691,220.01,219.94,2.4]
[1734370644736,2.2724,220.0,219.96,8.37636691]
[1734370644942,12.75449021,220.0,219.96,8.37636691]
[1734370645137,10.48209021,220.0,219.92,2.4]
[1734370645339,2.2726,219.98,219.93,8.37636691]
[1734370645543,8.37636691,219.99,219.93,8.37636691]
[1734370645743,2.273,219.95,219.9,5.34300105]
[1734370645947,8.37636691,219.95,219.82,1.5188]
[1734370646248,261.67284375,219.95,219.88,10.64996691]
[1734370646546,10.48908919,219.94,219.88,10.64996691]
[1734370646843,2.2732,219.93,219.88,2.2736]
[1734370647041,2.2732,219.93,219.89,8.37636691]
[1734370647446,12.76228919,219.93,219.89,8.37636691]
[1734370647648,10.48908919,219.93,219.89,10.64986691]
[1734370648046,10.48908919,219.93,219.91,8.37636691]
[1734370648246,253.29647684,219.94,219.92,2.2731]
[1734370648448,253.29647684,219.97,219.93,8.37636691]
[1734370648749,10.48281396,219.96,219.93,8.37636691]
[1734370649243,10.48281396,219.96,219.92,2.2731]
[1734370649443,8.37636691,219.99,219.91,8.37636691]
[1734370649848,2.2729,219.96,219.91,8.37636691]
[1734370650852,2.2729,219.96,219.91,10.64966691]
[1734370651749,2.2729,219.96,219.91,8.37636691]
[1734370651948,255.69647684,220.01,219.91,8.37636691]
[1734370652249,8.37636691,219.99,219.93,8.37636691]
[1734370652449,8.37636691,219.99,219.94,2.273]
[1734370652648,8.37636691,219.99,219.91,8.37636691]
[1734370652954,8.37636691,219.98,219.91,8.37636691]
[1734370653452,10.64906691,219.98,219.93,2.2731]
[1734370653648,8.37636691,219.98,219.9,10.77636691]
[1734370654649,8.37636691,219.98,219.92,8.37636691]
[1734370655455,2.2727,219.97,219.93,2.2731]
[1734370656457,2.2727,219.97,219.92,10.64956691]
[1734370656648,8.37636691,219.96,219.9,8.37636691]
[1734370657850,8.37636691,219.94,219.88,2.2736]
[1734370658056,8.37636691,219.92,219.88,2.2736]
[1734370658856,8.37636691,219.92,219.86,2.2738]
[1734370659153,2.2734,219.91,219.86,2.2738]
[1734370659457,8.37636691,219.9,219.84,8.37636691]
[1734370659657,2.2736,219.89,219.84,8.37636691]
[1734370660151,8.37636691,219.9,219.81,2.4]
[1734370660351,2.2738,219.87,219.83,8.37636691]
[1734370660852,10.65006691,219.88,219.83,8.37636691]
[1734370661655,2.2737,219.88,219.83,8.37636691]
[1734370661858,2.2737,219.88,219.84,2.274]
[1734370662053,2.2738,219.87,219.83,8.37636691]
[1734370662457,2.4,219.91,219.83,8.37636691]
[1734370662458,8.37636691,219.88,219.83,8.37636691]
[1734370662654,8.37636691,219.86,219.73,3.27197093]
[1734370662855,8.37636691,219.84,219.79,8.37636691]
[1734370663160,2.2744,219.82,219.78,2.2746]
[1734370664154,8.37636691,219.84,219.77,8.37636691]
[1734370664349,2.2742,219.83,219.79,2.2746]
[1734370664553,2.4,219.86,219.79,8.37636691]
[1734370664554,8.37636691,219.86,219.79,8.37636691]
[1734370664960,2.4,219.87,219.81,8.37636691]
[1734370665160,10.77636691,219.87,219.81,8.37636691]
[1734370665752,10.77636691,219.87,219.84,2.274]
[1734370666655,8.37636691,219.87,219.84,2.274]
[1734370666961,8.37636691,219.87,219.83,2.2741]
[1734370667663,8.37636691,219.87,219.83,10.65046691]
[1734370669167,2.2737,219.88,219.83,10.65046691]
[1734370669367,10.65006691,219.88,219.83,10.65046691]
[1734370670465,10.65006691,219.88,219.83,2.2741]
[1734370673969,8.37636691,219.86,219.83,2.2741]
[1734370674865,2.2737,219.88,219.83,2.2741]
[1734370675172,8.37636691,219.86,219.83,2.2741]
[1734370676671,8.37636691,219.86,219.81,8.37636691]
[1734370676672,8.37636691,219.88,219.81,8.37636691]
[1734370677272,8.37636691,219.88,219.86,2.2738]
[1734370678171,8.37636691,219.88,219.87,2.2737]
[1734370678674,8.37636691,219.88,219.83,8.37636691]
[1734370679368,253.29647684,219.93,219.83,8.37636691]
[1734370679567,8.37636691,219.88,219.85,2.2739]
[1734370679766,8.37636691,219.88,219.83,8.37636691]
[1734370680172,263.94634375,219.9,219.86,2.2738]
[1734370680373,253.29647684,219.9,219.85,8.37636691]
[1734370680571,253.29647684,219.91,219.85,8.37636691]
[1734370681075,255.56987684,219.91,219.85,8.37636691]
[1734370681669,255.56987684,219.91,219.84,2.4]
[1734370681670,8.37636691,219.9,219.87,2.2737]
[1734370682074,8.37636691,219.88,219.84,2.4]
[1734370682473,253.29647684,219.91,219.84,2.4]
[1734370682771,261.67284375,219.91,219.84,2.4]
[1734370683278,263.94624375,219.91,219.84,2.4]
[1734370683475,261.67284375,219.91,219.84,2.4]
[1734370683672,8.37636691,219.89,219.86,2.2739]
[1734370683880,8.37636691,219.89,219.84,10.77636691]
[1734370684081,253.29647684,219.9,219.84,10.77636691]
[1734370684281,253.29647684,219.9,219.85,2.2739]
[1734370684481,253.29647684,219.9,219.84,2.4]
[1734370684482,261.67284375,219.9,219.84,2.4]
[1734370684682,253.29647684,219.9,219.84,2.4]
[1734370684981,253.29647684,219.9,219.88,2.2736]
[1734370685180,8.37636691,219.91,219.88,2.2736]
[1734370685381,8.37636691,219.91,219.84,2.4]
[1734370685581,253.29647684,219.93,219.84,2.4]
[1734370685582,253.29647684,219.93,219.87,8.37636691]
[1734370685782,261.67284375,219.93,219.87,8.37636691]
[1734370685978,10.64976691,219.91,219.86,2.2739]
[1734370686178,8.37636691,219.91,219.86,2.2739]
[1734370686380,8.37636691,219.91,219.84,2.4]
[1734370686381,8.37636691,219.89,219.84,2.4]
[1734370686885,8.37636691,219.89,219.85,2.274]
[1734370687380,8.37636691,219.9,219.86,2.2739]
[1734370687581,255.56987684,219.91,219.86,2.2739]
[1734370687582,2.2734,219.91,219.86,2.2739]
[1734370687773,2.2734,219.91,219.85,8.37636691]
[1734370687977,263.94614375,219.92,219.87,2.2738]
[1734370688584,10.64966691,219.92,219.87,2.2738]
[1734370689474,8.37636691,219.9,219.87,2.2738]
[1734370690283,2.2734,219.91,219.87,2.2738]
[1734370690578,255.56977684,219.92,219.87,2.2738]
[1734370690776,8.37636691,219.91,219.85,2.2739]
[1734370690987,261.67284375,219.91,219.85,10.65026691]
[1734370691283,263.94624375,219.91,219.85,2.2739]
[1734370691478,8.37636691,219.87,219.8,1.6108]
[1734370691682,8.37636691,219.87,219.81,2.4]
[1734370692085,8.37636691,219.87,219.82,2.2744]
[1734370692780,8.37636691,219.83,219.72,2.4]
[1734370692981,8.37636691,219.83,219.76,8.37636691]
[1734370693181,253.29647684,219.84,219.82,8.37636691]
[1734370693782,253.29647684,219.84,219.83,2.2743]
[1734370694283,8.37636691,219.9,219.83,2.2743]
[1734370694284,255.57007684,219.89,219.83,2.2743]
[1734370694990,255.57007684,219.89,219.84,8.37636691]
[1734370695488,2.2736,219.89,219.84,8.37636691]
[1734370695787,2.2737,219.88,219.84,8.37636691]
[1734370696585,255.57017684,219.88,219.84,8.37636691]
[1734370696786,2.2741,219.84,219.78,2.2746]
[1734370696989,8.37636691,219.86,219.79,8.37636691]
[1734370697288,8.37636691,219.86,219.81,8.37636691]
[1734370697483,2.2738,219.87,219.81,8.37636691]
[1734370697690,255.57027684,219.87,219.81,8.37636691]
[1734370697891,8.37636691,219.86,219.77,5.56248419]
[1734370698092,10.65026691,219.86,219.79,8.37636691]
[1734370698480,10.65026691,219.86,219.81,8.37636691]
[1734370699487,10.65026691,219.86,219.82,2.2743]
[1734370699991,263.94674375,219.86,219.82,2.2743]
[1734370700994,10.65046691,219.84,219.79,2.2746]
[1734370701492,10.65046691,219.84,219.79,10.65096691]
[1734370701790,10.65036691,219.85,219.8,2.2745]
[1734370702282,263.94684375,219.85,219.8,2.2745]
[1734370703392,253.29647684,219.83,219.8,2.2745]
[1734370704992,253.29647684,219.83,219.79,8.37636691]
[1734370705187,253.29647684,219.83,219.79,10.65096691]
[1734370705588,253.29647684,219.83,219.8,2.2745]
[1734370707090,253.29647684,219.83,219.81,8.37636691]
[1734370708294,253.29647684,219.83,219.8,2.2745]
[1734370709288,253.29647684,219.83,219.81,8.37636691]
[1734370710385,8.37636691,219.87,219.83,2.2742]
[1734370711390,253.29647684,219.88,219.83,8.37636691]
[1734370711590,253.29647684,219.88,219.77,5.56248419]
[1734370711591,253.29647684,219.88,219.85,8.37636691]
[1734370711790,253.29647684,219.88,219.86,2.2739]
[1734370711995,253.29647684,219.88,219.83,8.37636691]
[1734370712699,253.29647684,219.9,219.83,8.37636691]
[1734370713293,253.29647684,219.9,219.85,2.274]
[1734370713791,8.37636691,219.89,219.85,2.274]
[1734370714797,8.37636691,219.89,219.83,8.37636691]
[1734370715099,261.67284375,219.89,219.85,2.2739]
[1734370715494,253.29647684,219.89,219.87,2.2737]
[1734370715698,261.67284375,219.89,219.83,8.37636691]
[1734370715993,261.67284375,219.89,219.81,2.48]
[1734370716197,261.67284375,219.89,219.82,8.37636691]
[1734370716997,261.67284375,219.89,219.85,2.2739]
[1734370717598,261.67284375,219.89,219.82,8.37636691]
[1734370718301,253.29647684,219.87,219.82,8.37636691]
[1734370718498,253.29647684,219.87,219.84,8.37636691]
[1734370718904,253.29647684,219.87,219.86,2.2738]
[1734370720104,253.29647684,219.87,219.84,8.37636691]
[1734370720301,253.29647684,219.87,219.85,2.2739]
[1734370721611,253.29647684,219.87,219.84,8.37636691]
[1734370723511,253.29647684,219.87,219.86,2.2739]
[1734370725214,263.94614375,219.91,219.86,2.2739]
[1734370725215,8.37636691,219.89,219.86,2.2739]
[1734370725516,253.29647684,219.9,219.86,2.2739]
[1734370725717,253.29647684,219.9,219.86,10.65026691]
[1734370726012,253.29647684,219.9,219.87,2.2737]
[1734370727411,8.37636691,219.91,219.88,2.2737]
[1734370727412,261.67284375,219.91,219.88,2.2737]
[1734370727817,261.67284375,219.91,219.86,8.37636691]
[1734370728013,261.67284375,219.91,219.87,2.2737]
[1734370731107,263.94624375,219.91,219.86,2.2739]
[1734370731312,263.94624375,219.91,219.84,8.37636691]
[1734370731516,261.67284375,219.91,219.84,8.37636691]
[1734370731917,261.67284375,219.91,219.86,10.65016691]
[1734370732118,253.29647684,219.87,219.86,3.7258895]
[1734370732319,253.29647684,219.87,219.86,2.2738]
[1734370733211,253.29647684,219.88,219.86,2.2738]
[1734370734018,253.29647684,219.88,219.77,5.56248419]
[1734370734217,253.29647684,219.86,219.78,4.90298154]
[1734370734519,253.29647684,219.86,219.78,2.48]
[1734370734717,253.29647684,219.86,219.82,10.65056691]
[1734370735714,253.29647684,219.86,219.84,10.65036691]
[1734370735918,253.29647684,219.86,219.84,8.37636691]
[1734370736520,253.29647684,219.86,219.85,2.274]